[Event "13th Poti Nana Aleksandria Cup"]
[Site "Poti"]
[Date "2018.07.20"]
[Round "9"]
[White "Martynyuk, Elizaveta"]
[Black "Eynullayev, Atilla"]
[Result "1/2-1/2"]
[ECO "C15"]
[WhiteElo "2182"]
[BlackElo "2120"]
[Annotator "NA RC"]
[PlyCount "161"]
[EventDate "2018.07.13"]
[EventType "swiss"]
[EventCountry "GEO"]
[SourceTitle "playchess.com"]
[Source "ChessBase"]
[SourceQuality "1"]
[TimeControl "40/5400+30:1800+30"]

{[%evp 20,153,15,22,32767,32767,32767,20,30,21,55,44,58,36,80,53,32767,32767,32767,32767,5,2,10,0,0,0,41,42,51,54,54,32767,32767,32767,32767,32767,34,32767,22,2,0,0,0,32767,0,32767,32767,32767,32767,32767,32767,32767,0,32767,32767,32767,0,-43,32767,-26,32767,32767,32767,32767,32767,32767,32767,32767,0,0,0,0,0,0,0,0,0,0,0,0,0,0,0,2,32767,32767,32767,32767,0,0,0,0,0,32767,0,-22,32767,32767,-69,32767,32767,-99,-97,-113,-104,-118,-102,32767,32767,32767,32767,32767,32767,32767,-79,-95,-66,-114,32767,32767,-81,32767,-87,-97,32767,-93,-93,-101,-82,-111,-79,-86,-99,-84,-72,-54]} 1. e4 {[%emt 0:03:14]} e6 {[%emt 0:00:00]} 2. d4 {[%emt 0:00:05]} d5 {[%emt 0:00:00]} 3. Nc3 {[%emt 0:00:06]} Bb4 {[%emt 0:00:00]} 4. exd5 {[%emt 0:00:10]} exd5 {[%emt 0:00:00]} 5. Bd3 {[%emt 0:00:06]} Nc6 {[%emt 0:00:00]} 6. a3 {[%emt 0:00:18]} Ba5 {[%emt 0:00:00]} 7. Nge2 {[%emt 0:00:12]} Nge7 {[%emt 0:00:00]} 8. O-O {[%emt 0:00:15]} O-O {[%emt 0:00:06]} 9. Na4 {[%emt 0:00:41] C01: French: Exchange Variation} (9. Bg5 f6 10. Be3 Bf5 11. Nf4 Bxc3 12. bxc3 Qd7 13. c4 Bxd3 14. Qxd3 Rad8 15. Rab1 b6 16. Rb5 dxc4 17. Qxc4+ {0-1 (48) Hou,Y (2680)-Mamedyarov,S (2804) Wijk aan Zee 2018}) 9... Bf5 {[%emt 0:05:02]} 10. Bg5 $146 {[%emt 0:02:19]} ({Predecessor:} 10. Bf4 Qc8 11. b4 Bb6 12. Nxb6 axb6 13. Re1 Qd7 14. Qd2 Rfe8 15. Bb5 Ng6 16. Bg3 Re7 {½-½ (40) Abrahamyan,T (2366)-Matsenko,S (2563) Saint Louis 2018}) 10... f6 {[%emt 0:07:15]} 11. Be3 {[%emt 0:00:48]} Bb6 {[%emt 0:04:29]} 12. Nxb6 {[%emt 0:00:50]} axb6 {[%emt 0:00:22]} 13. Re1 {[%emt 0:03:22]} Qd7 {[%emt 0:03:23]} 14. Bb5 {[%emt 0:00:34]} Bg6 {[%emt 0:05:15]} 15. Nf4 {[%emt 0:02:46]} Bf7 {[%emt 0:02:39]} 16. Qf3 {[%emt 0:03:21]} Rae8 {[%emt 0:07:09]} 17. Rad1 {[%emt 0:02:01]} Ng6 {[%emt 0:05:25]} 18. Qg3 {[%emt 0:04:55]} Re7 {[%emt 0:03:34]} 19. Bd3 {[%emt 0:05:06]} Nxf4 {[%emt 0:12:15]} 20. Bxf4 {[%emt 0:01:40]} Rfe8 {[%emt 0:08:59]} 21. Rxe7 {[%emt 0:00:44]} Rxe7 {[%emt 0:00:41]} 22. c3 {[%emt 0:00:45]} Be6 {[%emt 0:05:40]} 23. h4 {[%emt 0:02:05]} Bg4 {[%emt 0:05:55]} 24. f3 {[%emt 0:00:20]} Bh5 {[%emt 0:04:33]} 25. Re1 {[%emt 0:04:50]} Rxe1+ {[%emt 0:01:10]} 26. Qxe1 {[%emt 0:00:03]} Nd8 {[%emt 0:00:57]} 27. g4 {[%emt 0:04:01]} Bg6 {[%emt 0:02:11]} 28. Bf1 {[%emt 0:01:36]} h5 {[%emt 0:05:02]} 29. g5 {[%emt 0:03:44]} fxg5 {[%emt 0:08:46]} 30. Bxg5 {[%emt 0:00:16]} Nf7 {[%emt 0:00:46]} 31. Qg3 {[%emt 0:01:13]} Qf5 {[%emt 0:01:19]} 32. Qxc7 {[%emt 0:00:48]} Qxf3 {[%emt 0:01:32]} 33. Qf4 {[%emt 0:07:49]} Qd1 {[%emt 0:01:01]} 34. Qd2 {[%emt 0:00:26]} Qg4+ {[%emt 0:00:39]} 35. Qg2 {[%emt 0:00:37]} Qf5 {[%emt 0:00:20]} 36. Bd2 {[%emt 0:02:04]} Kh7 {[%emt 0:00:34]} 37. Be2 {[%emt 0:01:20]} Nd6 {[%emt 0:03:48]} 38. Qg5 {[%emt 0:02:05]} Qb1+ {[%emt 0:00:42]} 39. Bc1 {[%emt 0:01:23]} Ne4 {[%emt 0:01:18]} 40. Qe3 {[%emt 0:00:00]} Nf6 {[%emt 0:00:00]} 41. Kg2 {[%emt 0:02:45]} Qc2 {[%emt 0:01:48]} 42. Kg1 {[%emt 0:00:22]} Qf5 {[%emt 0:01:26]} 43. Qf4 {[%emt 0:03:14]} Qd7 {[%emt 0:04:21]} 44. Be3 {[%emt 0:07:13]} Qh3 {[%emt 0:02:29]} 45. Bf1 {[%emt 0:04:38]} Qe6 {[%emt 0:00:32]} 46. Be2 {[%emt 0:00:12]} Ne4 {[%emt 0:07:56]} 47. Bf3 {[%emt 0:01:02]} Qd7 {[%emt 0:01:25]} 48. Qh2 {[%emt 0:04:19]} Nf6 {[%emt 0:01:15]} 49. Bg5 {[%emt 0:01:27]} Ng4 {[%emt 0:06:04]} 50. Qe2 {[%emt 0:02:01]} Bf5 {[%emt 0:00:25]} 51. Qe7 {[%emt 0:03:47]} Qa4 {[%emt 0:06:51]} 52. Qe2 {[%emt 0:00:11]} ({Don't blunder} 52. Qxb7 $2 Qc2 $19) 52... Qc6 {[%emt 0:00:31]} 53. Qe7 {[%emt 0:03:14]} Qa4 {[%emt 0:01:41]} 54. Qe2 {[%emt 0:01:19]} Qb3 {[%emt 0:00:29]} 55. Be7 {[%emt 0:02:09]} Qa2 {[%emt 0:00:28]} 56. Bxg4 {[%emt 0:03:16]} hxg4 {[%emt 0:00:25]} 57. Qf1 {[%emt 0:00:51]} Be4 {[%emt 0:00:27]} 58. Qc1 {[%emt 0:00:27] [#]} g3 $1 {[%emt 0:01:13]} 59. Bd6 {[%emt 0:00:00]} g2 {[%emt 0:00:00]} 60. Kh2 {[%emt 0:03:56] [#]} Qc4 $1 {[%emt 0:00:19]} 61. Qd1 {[%emt 0:00:35] [#]} g6 $1 {[%emt 0:00:29]} ({Don't play} 61... Qf1 $6 62. Qh5+ Kg8 63. Qe8+ Kh7 64. Qh5+ Kg8 65. Qe8+ Kh7 66. Qh5+ $11) 62. Kg1 {[%emt 0:01:48]} Qc8 {[%emt 0:00:36]} 63. Bh2 {[%emt 0:02:35]} Qh3 {[%emt 0:00:33]} 64. Qe2 {[%emt 0:00:10]} Qxh4 {[%emt 0:00:52]} 65. Qf2 {[%emt 0:00:08]} Qe7 {[%emt 0:00:24]} 66. Be5 {[%emt 0:00:22] [#]} Kg8 $1 {[%emt 0:01:18]} 67. Qf6 {[%emt 0:01:30]} Qxf6 {[%emt 0:00:07]} 68. Bxf6 {[%emt 0:00:04]} Kf7 {[%emt 0:00:18]} 69. Be5 {[%emt 0:00:03]} b5 {[%emt 0:00:20]} 70. Kf2 {[%emt 0:00:08]} Ke6 {[%emt 0:00:15]} 71. Bh2 {[%emt 0:00:25]} Kf5 {[%emt 0:00:36]} 72. Kg3 {[%emt 0:00:16]} g5 {[%emt 0:00:14]} 73. Bg1 {[%emt 0:00:16]} g4 {[%emt 0:00:19]} 74. Kf2 {[%emt 0:00:38]} Bf3 {[%emt 0:01:21]} 75. Ke3 {[%emt 0:00:07]} Ke6 {[%emt 0:00:28]} 76. Kf4 {[%emt 0:00:59]} Kd6 $17 {[%emt 0:00:11]} 77. b4 {[%emt 0:00:40]} Ke6 {[%emt 0:00:26]} 78. Kg5 {[%emt 0:00:06]} Be2 {[%emt 0:00:53]} 79. Be3 {[%emt 0:00:06]} Bd1 {[%emt 0:00:34]} 80. Bg1 {[%emt 0:00:06]} Bf3 {[%emt 0:00:25]} 81. Be3 {[%emt 0:00:04] Ke5} 1/2-1/2

[Event "13th Poti Nana Aleksandria Cup"]
[Site "Poti"]
[Date "2018.07.20"]
[Round "9"]
[White "Yeritsyan, Hayk"]
[Black "Shanya Mishra"]
[Result "0-1"]
[ECO "B40"]
[WhiteElo "2178"]
[BlackElo "1980"]
[Annotator "NA RC"]
[PlyCount "65"]
[EventDate "2018.07.13"]
[EventType "swiss"]
[EventCountry "GEO"]
[SourceTitle "playchess.com"]
[Source "ChessBase"]
[SourceQuality "1"]
[TimeControl "40/5400+30:1800+30"]

{[%evp 19,64,33,32767,62,52,45,43,33,59,0,-1,-3,0,-8,1,0,0,0,0,-3,0,-31,32767,32767,32767,32767,32767,32767,32767,32767,32767,32767,-293,-393,-418,-703,-502,-477,32767,32767,32767,32767,-241,-229,-225,-1400,-1162]} 1. e4 {[%emt 0:00:38]} c5 {[%emt 0:00:00]} 2. Nf3 {[%emt 0:00:08]} e6 {[%emt 0:00:22]} 3. Nc3 {[%emt 0:00:05]} Nc6 {[%emt 0:00:26]} 4. Bb5 {[%emt 0:00:26]} Nd4 {[%emt 0:00:42]} 5. O-O {[%emt 0:00:21]} a6 {[%emt 0:00:29]} 6. Bd3 {[%emt 0:00:38]} Qc7 {[%emt 0:01:05] B30: Sicilian: 2...Nc6 3 Bb5, lines without ...g6} (6... Nc6 7. b3 Nge7 8. Bb2 Ng6 9. Re1 Be7 10. Nd5 exd5 11. exd5 O-O 12. dxc6 dxc6 13. Bxg6 hxg6 14. a4 {½-½ (81) Grischuk,A (2772)-Harikrishna,P (2744) Huaian 2017}) 7. Nxd4 {[%emt 0:01:55]} cxd4 {[%emt 0:01:51]} 8. Ne2 {[%emt 0:00:04]} Bc5 {[%emt 0:02:53]} 9. b4 {[%emt 0:02:09]} Ba7 $146 {[%emt 0:02:38]} ({Predecessor:} 9... Bxb4 10. Nxd4 Nf6 11. Bb2 Bd6 12. Nf3 Ng4 13. h3 Ne5 14. Nxe5 Bxe5 15. Bxe5 Qxe5 {1-0 (36) Schebler,G (2453)-Goormachtigh,J (2242) Gent 2008}) 10. Bb2 {[%emt 0:01:22]} e5 {[%emt 0:00:06]} 11. c3 {[%emt 0:10:55]} dxc3 {[%emt 0:01:24]} 12. Nxc3 {[%emt 0:00:18]} Nf6 {[%emt 0:00:13]} 13. Rc1 {[%emt 0:01:54]} Qd8 {[%emt 0:00:52]} 14. Qb3 {[%emt 0:06:36]} O-O {[%emt 0:02:42]} 15. Nd5 {[%emt 0:05:23]} Nxd5 {[%emt 0:01:02]} 16. Qxd5 {[%emt 0:00:04]} d6 {[%emt 0:00:05]} 17. Bc4 {[%emt 0:00:36]} Qe7 {[%emt 0:00:16]} 18. Qd3 {[%emt 0:00:34]} Be6 {[%emt 0:00:58]} 19. Bd5 {[%emt 0:01:52]} Rac8 {[%emt 0:01:06]} 20. g3 {[%emt 0:01:34]} Bh3 {[%emt 0:02:28]} 21. Rfe1 {[%emt 0:00:14]} Kh8 {[%emt 0:00:51]} 22. Qf3 {[%emt 0:07:24]} Rxc1 {[%emt 0:02:37]} 23. Rxc1 {[%emt 0:00:09]} f5 {[%emt 0:01:02]} 24. exf5 {[%emt 0:04:00]} Bxf5 {[%emt 0:00:24]} 25. d4 {[%emt 0:07:17]} exd4 {[%emt 0:02:57]} 26. Qf4 {[%emt 0:03:33]} d3 {[%emt 0:01:44]} 27. Qh6 $2 {[%emt 0:10:43] [#]} (27. Bd4 Be6 28. Qe3 Bxd4 29. Qxe6) 27... Bxf2+ $1 {[%emt 0:06:29]} 28. Kg2 {[%emt 0:00:04]} Be4+ {[%emt 0:01:59]} 29. Bxe4 {[%emt 0:00:04]} Qxe4+ {[%emt 0:00:05]} 30. Kh3 {[%emt 0:00:02]} Bd4 {[%emt 0:01:54]} (30... Qe7) 31. Bxd4 {[%emt 0:01:14]} Qxd4 {[%emt 0:00:05]} 32. Qh4 $2 {[%emt 0:00:07]} (32. Qf4 Qxf4 33. gxf4) 32... Qe3 $19 {[%emt 0:07:29]} 33. Qg4 {[%emt 0:00:45]} 0-1

[Event "13th Poti Nana Aleksandria Cup"]
[Site "Poti"]
[Date "2018.07.20"]
[Round "9"]
[White "Matevosyan, Sedrak"]
[Black "Eynullayev, Altay"]
[Result "1/2-1/2"]
[ECO "A34"]
[WhiteElo "2161"]
[BlackElo "2134"]
[Annotator "NA RC"]
[PlyCount "102"]
[EventDate "2018.07.13"]
[EventType "swiss"]
[EventCountry "GEO"]
[SourceTitle "playchess.com"]
[Source "ChessBase"]
[SourceQuality "1"]
[TimeControl "40/5400+30:1800+30"]

{[%evp 8,91,7,9,37,32767,32767,32767,32767,32767,32767,-19,32767,6,4,-37,-32,-27,-41,32767,32767,32767,32767,32767,-54,-56,-60,-52,-56,-51,32767,32767,32767,32767,32767,-64,32767,32767,-54,-52,-64,32767,32767,-189,32767,32767,-129,32767,-57,-72,32767,32767,32767,32767,32767,32767,-55,-52,-13,-4,0,-39,32767,-1,-6,-155,-164,-181,-135,-141,-206,32767,32767,32767,32767,-100,-34,-45,-38,-47,-49,-94,-36,32767,-28,-8]} 1. c4 {[%emt 0:00:00]} c5 {[%emt 0:00:00]} 2. Nc3 {[%emt 0:00:00]} Nf6 {[%emt 0:00:00]} 3. g3 {[%emt 0:00:00]} d5 {[%emt 0:00:00]} 4. cxd5 {[%emt 0:00:12]} Nxd5 {[%emt 0:00:00]} 5. Bg2 {[%emt 0:00:09]} Nc7 {[%emt 0:00:00]} 6. Nf3 {[%emt 0:02:48]} Nc6 {[%emt 0:00:11]} 7. O-O {[%emt 0:07:32]} e5 {[%emt 0:03:27]} 8. a3 {[%emt 0:03:35]} Rb8 {[%emt 0:00:52] A34: Symmetrical English: 2 Nc3, lines with ...d5} (8... Bd7 9. e3 Be7 10. d4 exd4 11. exd4 cxd4 12. Nxd4 O-O 13. Be3 Bf6 14. Rc1 Nxd4 15. Bxd4 Bc6 16. Bxc6 bxc6 {0-1 (69) Almasi,Z (2682)-Kasimdzhanov,R (2683) Riadh 2017}) 9. Rb1 {[%emt 0:04:34]} f6 {[%emt 0:01:59]} 10. d3 {[%emt 0:09:41]} Be7 {[%emt 0:01:26] LiveBook: 15 Games} 11. Bd2 {[%emt 0:03:41]} Be6 {[%emt 0:03:06]} 12. Rc1 $146 {[%emt 0:07:02]} ({Predecessor:} 12. Qa4 b5 13. Qh4 O-O 14. b4 Nd4 15. bxc5 Bxc5 16. Nxd4 exd4 17. Ne4 Bxa3 18. Bf4 g5 19. Nxf6+ Qxf6 20. Bxg5 Qg6 21. Bf4 Rf7 22. Be5 Rd8 23. Qxd8+ {1-0 (23) Shoker,S (2466)-Daurelle,H (2249) Marrakesh 2010}) 12... O-O {[%emt 0:04:03]} 13. Ne4 {[%emt 0:03:29]} Na6 {[%emt 0:02:26]} 14. Qa4 {[%emt 0:05:59]} Qd7 {[%emt 0:04:09]} 15. Rfd1 {[%emt 0:03:25]} b5 {[%emt 0:17:34]} 16. Qc2 $1 {[%emt 0:00:05]} ({Don't blunder} 16. Qxa6 $2 Rb6 $19) 16... Rfc8 {[%emt 0:00:22]} 17. Qb1 {[%emt 0:19:37]} Bb3 {[%emt 0:05:00]} 18. Re1 {[%emt 0:03:07]} Qe6 {[%emt 0:04:49]} 19. Be3 {[%emt 0:03:45]} Nd4 {[%emt 0:02:31]} 20. Nfd2 {[%emt 0:02:33]} Bd5 {[%emt 0:01:36]} 21. Nc3 {[%emt 0:05:02]} Bxg2 {[%emt 0:00:40]} 22. Kxg2 {[%emt 0:00:01]} b4 {[%emt 0:09:10]} 23. axb4 {[%emt 0:01:03]} cxb4 {[%emt 0:00:07]} 24. Bxd4 {[%emt 0:04:41]} exd4 {[%emt 0:00:11]} 25. Na4 {[%emt 0:01:13]} (25. Nd1 $15) 25... b3 {[%emt 0:06:20]} 26. Rxc8+ {[%emt 0:03:26]} Qxc8 {[%emt 0:03:15]} 27. Rc1 {[%emt 0:02:51]} Qb7+ {[%emt 0:00:19]} ({Günstiger ist} 27... Qd7 $17 28. Rc4 Nb4 29. Nxb3 Qxa4 30. Nxd4 Qd7) 28. Nf3 {[%emt 0:00:30]} Qd7 {[%emt 0:02:14]} 29. Rc4 {[%emt 0:00:20]} Rb4 {[%emt 0:00:21]} 30. Qa1 {[%emt 0:02:41]} Rxc4 {[%emt 0:03:27]} 31. dxc4 {[%emt 0:00:02]} Qc6 {[%emt 0:00:14]} 32. c5 $1 {[%emt 0:01:51]} Nxc5 {[%emt 0:04:27]} 33. Nxc5 {[%emt 0:00:07]} Bxc5 {[%emt 0:00:04]} 34. Qa5 {[%emt 0:00:37]} Bb6 {[%emt 0:03:38]} 35. Qb4 {[%emt 0:01:07]} Qd5 {[%emt 0:00:10]} 36. Kg1 {[%emt 0:00:34]} (36. Qe7 $11 {was the only way to keep the balance.} h6 37. Qe8+ Kh7 38. h4) 36... d3 {[%emt 0:06:13]} 37. e4 {[%emt 0:00:05]} Qc5 {[%emt 0:05:52]} 38. Qxb3+ {[%emt 0:01:00]} Kh8 {[%emt 0:00:40]} 39. Qxd3 {[%emt 0:00:24]} Qxf2+ {[%emt 0:00:01]} 40. Kh1 {[%emt 0:00:00]} Qxb2 {[%emt 0:00:00]} 41. Qc4 {[%emt 0:10:08] [#]} Qb1+ {[%emt 0:03:07]} (41... h5 $1 $17 42. Qc8+ Kh7) 42. Kg2 {[%emt 0:00:22]} Qd1 {[%emt 0:00:12]} 43. e5 {[%emt 0:02:39]} Qd8 {[%emt 0:12:55]} 44. Qf7 {[%emt 0:12:10]} (44. h4 $11 {bleibt in der Remisbreite.}) 44... Bc5 {[%emt 0:03:38]} 45. e6 {[%emt 0:04:22]} Qe7 {[%emt 0:03:11]} (45... g6 $17 46. Qb7 a5) 46. Nd4 $11 {[%emt 0:00:36]} Qxf7 {[%emt 0:01:14]} 47. exf7 {[%emt 0:00:06]} a5 {[%emt 0:00:14]} 48. Nb3 {[%emt 0:03:40]} Bf8 {[%emt 0:01:01]} 49. Nxa5 {[%emt 0:00:05]} g6 {[%emt 0:00:15]} 50. Nc4 {[%emt 0:00:14]} Kg7 {[%emt 0:00:07]} 51. Kf3 {[%emt 0:00:13]} Kxf7 {[%emt 0:00:01]} 1/2-1/2

[Event "13th Poti Nana Aleksandria Cup"]
[Site "Poti"]
[Date "2018.07.20"]
[Round "9"]
[White "Kokaia, Guram"]
[Black "Gordon, Evgeny"]
[Result "1-0"]
[ECO "B07"]
[WhiteElo "2159"]
[BlackElo "2016"]
[Annotator "RC"]
[PlyCount "51"]
[EventDate "2018.07.13"]
[EventType "swiss"]
[EventCountry "GEO"]
[SourceTitle "playchess.com"]
[Source "ChessBase"]
[SourceQuality "1"]
[TimeControl "40/5400+30:1800+30"]

1. e4 {[%emt 0:09:33]} d6 {[%emt 0:01:06]} 2. d4 {[%emt 0:00:07]} Nf6 {[%emt 0:00:02]} 3. Nc3 {[%emt 0:00:08]} e5 {[%emt 0:00:03]} 4. Nge2 {[%emt 0:00:08]} Be7 {[%emt 0:00:14]} 5. g3 {[%emt 0:01:03]} c6 {[%emt 0:01:05]} 6. Bg2 {[%emt 0:00:15]} b5 {[%emt 0:01:35]} 7. a3 {[%emt 0:01:43]} O-O {[%emt 0:01:14]} 8. O-O {[%emt 0:00:08]} a5 {[%emt 0:00:13]} 9. d5 {[%emt 0:02:32]} Bb7 {[%emt 0:04:34]} 10. dxc6 {[%emt 0:03:29]} Bxc6 {[%emt 0:00:01]} 11. h3 {[%emt 0:03:54]} Nbd7 {[%emt 0:02:08]} 12. g4 {[%emt 0:05:30]} Nc5 {[%emt 0:04:26]} 13. Ng3 {[%emt 0:02:15]} b4 {[%emt 0:06:49]} 14. axb4 {[%emt 0:01:38]} axb4 {[%emt 0:00:02]} 15. Rxa8 {[%emt 0:00:18]} Bxa8 {[%emt 0:00:44]} 16. Nd5 {[%emt 0:01:35]} Nxd5 {[%emt 0:00:51]} 17. exd5 {[%emt 0:00:03]} g6 {[%emt 0:10:26]} 18. Bh6 {[%emt 0:01:33]} Re8 {[%emt 0:00:04]} 19. Qd2 {[%emt 0:01:11]} b3 {[%emt 0:05:18]} 20. cxb3 {[%emt 0:02:48]} Nxb3 {[%emt 0:00:03]} 21. Qe3 {[%emt 0:00:50]} Na5 {[%emt 0:07:00]} 22. Qc3 {[%emt 0:08:49]} Nb7 {[%emt 0:06:18]} 23. b4 {[%emt 0:04:05]} Qb8 {[%emt 0:00:59]} 24. Rc1 {[%emt 0:02:21]} f6 {[%emt 0:12:51]} 25. Qc7 {[%emt 0:06:14]} Qa7 {[%emt 0:11:09]} 26. Qc5 1-0

[Event "13th Poti Nana Aleksandria Cup"]
[Site "Poti"]
[Date "2018.07.20"]
[Round "9"]
[White "Tihonov, Gennady"]
[Black "Tsotsonava, Elene"]
[Result "1-0"]
[ECO "C11"]
[WhiteElo "1845"]
[BlackElo "1647"]
[Annotator "NA RC"]
[PlyCount "75"]
[EventDate "2018.07.13"]
[EventType "swiss"]
[EventCountry "GEO"]
[SourceTitle "playchess.com"]
[Source "ChessBase"]
[SourceQuality "1"]
[TimeControl "40/5400+30:1800+30"]

1. d4 {[%emt 0:02:47]} Nf6 {[%emt 0:00:00]} 2. Nc3 {[%emt 0:00:16]} d5 {[%emt 0:00:00]} 3. Bg5 {[%emt 0:00:14]} e6 {[%emt 0:00:22]} 4. e4 {[%emt 0:00:07]} dxe4 {[%emt 0:00:50]} 5. Nxe4 {[%emt 0:02:33]} Be7 {[%emt 0:00:07]} 6. Bxf6 {[%emt 0:00:05]} Bxf6 {[%emt 0:00:06]} 7. Nf3 {[%emt 0:00:07]} O-O {[%emt 0:00:22]} 8. c3 {[%emt 0:01:24]} Nd7 {[%emt 0:01:37]} 9. Bd3 {[%emt 0:05:08]} b6 {[%emt 0:00:33]} 10. Qc2 {[%emt 0:00:31]} Bb7 {[%emt 0:00:14] LiveBook: 7 Games C13: French: Classical System: 4 Bg5 Be7, Alekhine-Chatard Attack} 11. Rd1 {[%emt 0:01:52]} e5 $146 {[%emt 0:10:46]} (11... Qe7 $11 {keeps the balance.}) ({Predecessor:} 11... g6 12. O-O Bg7 13. Rfe1 Re8 14. Qa4 a6 15. Neg5 b5 16. Qc2 Nb6 17. Ne4 Bd5 18. b3 {1-0 (36) Wang,R (2509)-Wu,K (2284) Tianjing 2001}) 12. O-O {[%emt 0:02:20]} exd4 {[%emt 0:00:18]} 13. cxd4 {[%emt 0:00:07]} Rc8 {[%emt 0:01:10]} 14. Rfe1 {[%emt 0:01:48]} Re8 {[%emt 0:01:34]} 15. Bb5 {[%emt 0:08:06]} Bxe4 {[%emt 0:02:47]} 16. Rxe4 {[%emt 0:00:11]} Rxe4 {[%emt 0:00:09]} 17. Qxe4 {[%emt 0:00:07]} Nc5 {[%emt 0:00:34]} 18. Qc2 {[%emt 0:07:16]} Ne6 {[%emt 0:00:38]} 19. d5 {[%emt 0:05:30]} Nc5 {[%emt 0:02:37]} 20. b4 {[%emt 0:01:29]} Nb7 {[%emt 0:00:13]} 21. Ba6 {[%emt 0:00:53]} Rb8 {[%emt 0:02:56]} 22. Rc1 {[%emt 0:08:24]} Nd6 {[%emt 0:05:21]} 23. Qxc7 {[%emt 0:01:11]} b5 {[%emt 0:04:17]} 24. Qxd8+ {[%emt 0:07:46]} Rxd8 {[%emt 0:01:06]} 25. Rc5 {[%emt 0:05:01]} Ne4 {[%emt 0:05:20]} 26. Rxb5 $16 {[%emt 0:01:09]} Nc3 {[%emt 0:00:08]} 27. Rb7 {[%emt 0:04:15]} Rxd5 {[%emt 0:01:21]} 28. g3 {[%emt 0:01:08]} Nxa2 {[%emt 0:01:36]} 29. Bc4 {[%emt 0:03:25]} Rd1+ {[%emt 0:00:10]} 30. Kg2 {[%emt 0:00:05]} Nc3 {[%emt 0:00:19]} 31. Rxf7 {[%emt 0:00:50]} Nd5 {[%emt 0:03:11]} 32. Rd7 {[%emt 0:01:27]} Kf8 {[%emt 0:00:52]} 33. Rxd5 {[%emt 0:00:55]} Rb1 {[%emt 0:01:02]} 34. b5 {[%emt 0:00:38]} Ke7 {[%emt 0:00:14]} 35. Bd3 {[%emt 0:00:28]} h6 {[%emt 0:00:58]} 36. Nd4 {[%emt 0:00:48]} Rd1 {[%emt 0:00:39]} 37. Nf5+ {[%emt 0:02:57]} Ke8 {[%emt 0:00:35]} 38. b6 {[%emt 0:00:26]} 1-0

[Event "13th Poti Nana Aleksandria Cup"]
[Site "Poti"]
[Date "2018.07.20"]
[Round "9"]
[White "Arakelyan, Nare"]
[Black "Pshmahov, Osman"]
[Result "0-1"]
[ECO "B00"]
[WhiteElo "1834"]
[BlackElo "2136"]
[Annotator "RC"]
[PlyCount "150"]
[EventDate "2018.07.13"]
[EventType "swiss"]
[EventCountry "GEO"]
[SourceTitle "playchess.com"]
[Source "ChessBase"]
[SourceQuality "1"]
[TimeControl "40/5400+30:1800+30"]

1. e4 {[%emt 0:00:00]} b6 {[%emt 0:00:15]} 2. d4 {[%emt 0:00:19]} e6 {[%emt 0:00:10]} 3. Be3 {[%emt 0:02:48]} Bb7 {[%emt 0:01:16]} 4. Bd3 {[%emt 0:00:58]} g6 {[%emt 0:01:09]} 5. Ne2 {[%emt 0:02:02]} Bg7 {[%emt 0:00:47]} 6. f4 {[%emt 0:00:50]} f5 {[%emt 0:00:45]} 7. Nd2 {[%emt 0:03:30]} Nf6 {[%emt 0:00:28]} 8. Ng3 {[%emt 0:00:38]} d5 {[%emt 0:00:53]} 9. e5 {[%emt 0:04:36]} Ne4 {[%emt 0:00:08]} 10. Nf3 {[%emt 0:01:52]} O-O {[%emt 0:01:37]} 11. Qe2 {[%emt 0:02:05]} Qe7 {[%emt 0:02:13]} 12. c3 {[%emt 0:01:53]} c5 {[%emt 0:00:45]} 13. O-O {[%emt 0:01:40]} Nd7 {[%emt 0:00:50]} 14. a4 {[%emt 0:01:44]} c4 {[%emt 0:01:45]} 15. Bc2 {[%emt 0:03:06]} Nxg3 {[%emt 0:00:42]} 16. hxg3 {[%emt 0:00:09]} a6 {[%emt 0:00:08]} 17. Kf2 {[%emt 0:01:08]} b5 {[%emt 0:02:00]} 18. Bd2 {[%emt 0:02:27]} Bc6 {[%emt 0:02:49]} 19. a5 {[%emt 0:02:32]} Rfb8 {[%emt 0:01:01]} 20. Rh1 {[%emt 0:00:59]} Qe8 {[%emt 0:01:20]} 21. Ng5 {[%emt 0:01:58]} h6 {[%emt 0:00:36]} 22. Nf3 {[%emt 0:00:37]} h5 {[%emt 0:01:13]} 23. Nh4 {[%emt 0:02:55]} Bf8 {[%emt 0:00:57]} 24. Rh3 {[%emt 0:06:39]} b4 {[%emt 0:03:29]} 25. Rah1 {[%emt 0:02:30]} bxc3 {[%emt 0:00:42]} 26. Bxc3 {[%emt 0:00:27]} Be7 {[%emt 0:01:52]} 27. R3h2 {[%emt 0:07:06]} Nf8 {[%emt 0:02:03]} 28. Bd1 {[%emt 0:06:37]} Bxh4 {[%emt 0:02:17]} 29. Rxh4 {[%emt 0:00:31]} Ba4 {[%emt 0:01:34]} 30. Qd2 {[%emt 0:08:09]} Bxd1 {[%emt 0:01:05]} 31. Rxd1 {[%emt 0:00:01]} Rb3 {[%emt 0:00:21]} 32. Rhh1 {[%emt 0:01:34]} Rab8 {[%emt 0:00:16]} 33. Ra1 {[%emt 0:01:43]} R8b7 {[%emt 0:00:21]} 34. Rhb1 {[%emt 0:01:02]} Nd7 {[%emt 0:00:40]} 35. Ke2 {[%emt 0:01:51]} Nb8 {[%emt 0:00:24]} 36. Qe1 {[%emt 0:02:05]} Nc6 {[%emt 0:00:09]} 37. Qd2 {[%emt 0:00:24]} Qe7 {[%emt 0:01:47]} 38. Ra4 {[%emt 0:02:10]} Na7 {[%emt 0:00:32]} 39. Rc1 {[%emt 0:07:22]} Nc6 {[%emt 0:01:48]} 40. Rca1 {[%emt 0:00:00]} Qe8 {[%emt 0:00:00]} 41. Kd1 {[%emt 0:06:21]} Qb8 {[%emt 0:02:05]} 42. Kc1 {[%emt 0:04:35]} Na7 {[%emt 0:02:44]} 43. R1a3 {[%emt 0:04:17]} R3b5 {[%emt 0:00:45]} 44. Ra1 {[%emt 0:00:45]} Nc6 {[%emt 0:00:06]} 45. R1a3 {[%emt 0:01:16]} Qf8 {[%emt 0:00:41]} 46. Ra1 {[%emt 0:01:47]} Nb4 {[%emt 0:03:05]} 47. Bxb4 {[%emt 0:00:24]} Rxb4 {[%emt 0:00:03]} 48. Rxb4 {[%emt 0:00:03]} Qxb4 {[%emt 0:00:07]} 49. Qxb4 {[%emt 0:00:12]} Rxb4 {[%emt 0:00:03]} 50. Ra3 {[%emt 0:00:19]} Kh7 {[%emt 0:00:19]} 51. Kc2 {[%emt 0:00:28]} Kh6 {[%emt 0:00:05]} 52. Kc3 {[%emt 0:01:13]} Rb5 {[%emt 0:00:07]} 53. Kc2 {[%emt 0:01:11]} g5 {[%emt 0:03:00]} 54. Kc3 {[%emt 0:05:50]} h4 {[%emt 0:00:37]} 55. fxg5+ {[%emt 0:03:33]} Kxg5 {[%emt 0:00:10]} 56. gxh4+ {[%emt 0:00:02]} Kxh4 {[%emt 0:00:10]} 57. Kc2 {[%emt 0:00:07]} f4 {[%emt 0:04:22]} 58. Rh3+ {[%emt 0:01:30]} Kg5 {[%emt 0:00:07]} 59. Rh8 {[%emt 0:04:09]} Rxa5 {[%emt 0:00:44]} 60. Rf8 {[%emt 0:06:52]} Rb5 {[%emt 0:00:07]} 61. Rf6 {[%emt 0:00:28]} Rb6 {[%emt 0:00:36]} 62. Kc1 {[%emt 0:01:16]} Kg4 {[%emt 0:00:21]} 63. Kc2 {[%emt 0:00:22]} Kg3 {[%emt 0:00:06]} 64. Kc1 {[%emt 0:00:23]} a5 {[%emt 0:00:10]} 65. Kc2 {[%emt 0:00:19]} a4 {[%emt 0:00:09]} 66. Rf8 {[%emt 0:01:07]} Rb3 {[%emt 0:02:52]} 67. Rf6 {[%emt 0:02:17]} Rd3 {[%emt 0:00:45]} 68. Rxe6 {[%emt 0:00:53]} Rxd4 {[%emt 0:01:10]} 69. Rg6+ {[%emt 0:00:05]} Kf2 {[%emt 0:00:06]} 70. e6 {[%emt 0:01:01]} Re4 {[%emt 0:00:10]} 71. Kc3 {[%emt 0:00:30]} Ke3 {[%emt 0:00:23]} 72. Rh6 {[%emt 0:03:17]} Ke2 {[%emt 0:02:02]} 73. e7 {[%emt 0:01:10]} d4+ {[%emt 0:00:36]} 74. Kxc4 {[%emt 0:01:45]} d3+ {[%emt 0:00:09]} 75. Kc3 {[%emt 0:02:07]} d2 {[%emt 0:00:14] Kd4} 0-1